fUST/lending_fUST_20250528
["ID","MTS","AMOUNT","RATE_DAILY","PERIOD"]
[362679162,1748394640775,-430.0,0.00019726,2]
[362679164,1748394640785,-430.0,0.00019726,2]
[362679166,1748394640795,-514.43,0.00019726,2]
[362679168,1748394640804,-611.29,0.00019726,2]
[362679170,1748394640813,-430.0,0.00019726,2]
[362679171,1748394640823,-430.0,0.00019726,2]
[362679173,1748394640832,-430.0,0.00019726,2]
[362679175,1748394640842,-498.31938433,0.00019726,2]
[362679178,1748394640851,-430.0,0.00019726,2]
[362679180,1748394640861,-430.0,0.00019726,2]
[362679182,1748394640870,-430.0,0.00019726,2]
[362679184,1748394640879,-1710.83,0.00019726,2]
[362679185,1748394640889,-430.0,0.00019726,2]
[362679188,1748394640899,-1187.51,0.00019726,2]
[362679190,1748394640908,-430.0,0.00019726,2]
[362679191,1748394640918,-490.0,0.00019726,2]
[362679193,1748394640927,-490.0,0.00019726,2]
[362679195,1748394640940,-430.0,0.00019726,2]
[362679197,1748394640949,-490.0,0.00019726,2]
[362679199,1748394640959,-430.0,0.00019726,2]
[362679202,1748394640969,-340.0,0.00019726,2]
[362679203,1748394640978,-430.0,0.00019726,2]
[362679206,1748394640988,-430.0,0.00019726,2]
[362679207,1748394640998,-430.0,0.00019726,2]
[362679209,1748394641007,-430.0,0.00019726,2]
[362679211,1748394641016,-430.0,0.00019726,2]
[362679214,1748394641026,-430.0,0.00019726,2]
[362679215,1748394641035,-430.0,0.00019726,2]
[362679218,1748394641045,-430.0,0.00019726,2]
[362679219,1748394641054,-430.0,0.00019726,2]
[362679221,1748394641064,-430.0,0.00019726,2]
[362679223,1748394641073,-430.0,0.00019726,2]
[362679226,1748394641082,-564.86,0.00019726,2]
[362679227,1748394641092,-430.0,0.00019726,2]
[362679229,1748394641102,-430.0,0.00019726,2]
[362679231,1748394641113,-600.06,0.00019726,2]
[362679234,1748394641123,-430.0,0.00019726,2]
[362679236,1748394641132,-1836.92,0.00019726,2]
[362679238,1748394641142,-430.0,0.00019726,2]
[362679240,1748394641151,-430.0,0.00019726,2]
[362679242,1748394641160,-430.0,0.00019726,2]
[362679244,1748394641170,-430.0,0.00019726,2]
[362679246,1748394641180,-430.0,0.00019726,2]
[362679248,1748394641191,-430.0,0.00019726,2]
[362679250,1748394641200,-968.0,0.00019726,2]
[362679252,1748394641210,-430.0,0.00019726,2]
[362679254,1748394641219,-430.0,0.00019726,2]
[362679256,1748394641229,-430.0,0.00019726,2]
[362679258,1748394641238,-430.0,0.00019726,2]
[362679260,1748394641247,-430.0,0.00019726,2]
[362679261,1748394641257,-419.72,0.00019726,2]
[362679264,1748394641266,-430.0,0.00019726,2]
[362679266,1748394641276,-430.0,0.00019726,2]
[362679267,1748394641285,-430.0,0.00019726,2]
[362679269,1748394641294,-430.0,0.00019726,2]
[362679271,1748394641304,-430.0,0.00019726,2]
[362679274,1748394641313,-430.0,0.00019726,2]
[362679276,1748394641322,-430.0,0.00019726,2]
[362679278,1748394641331,-476.22,0.00019726,2]
[362679280,1748394641340,-430.0,0.00019726,2]
[362679281,1748394641348,-430.0,0.00019726,2]
[362679283,1748394641357,-470.0,0.00019726,2]
[362679285,1748394641367,-430.0,0.00019726,2]
[362679287,1748394641376,-430.0,0.00019726,2]
[362679289,1748394641386,-430.0,0.00019726,2]
[362679291,1748394641395,-524.62,0.00019726,2]
[362679294,1748394641404,-430.0,0.00019726,2]
[362679296,1748394641414,-430.0,0.00019726,2]
[362679298,1748394641423,-430.0,0.00019726,2]
[362679300,1748394641431,-430.0,0.00019726,2]
[362679301,1748394641443,-430.0,0.00019726,2]
[362679303,1748394641452,-430.0,0.00019726,2]
[362679305,1748394641460,-430.0,0.00019726,2]
[362679307,1748394641470,-430.0,0.00019726,2]
[362679309,1748394641479,-430.0,0.00019726,2]
[362679311,1748394641487,-430.0,0.00019726,2]
[362679313,1748394641497,-430.0,0.00019726,2]
[362679315,1748394641506,-573.75,0.00019726,2]
[362679317,1748394641515,-430.0,0.00019726,2]
[362679320,1748394641525,-430.0,0.00019726,2]
[362679322,1748394641534,-430.0,0.00019726,2]
[362679324,1748394641543,-430.0,0.00019726,2]
[362679325,1748394641552,-378.0,0.00019726,2]
[362679327,1748394641560,-441.22,0.00019726,2]
[362679329,1748394641570,-430.0,0.00019726,2]
[362679331,1748394641579,-430.0,0.00019726,2]
[362679334,1748394641592,-430.0,0.00019726,2]
[362679336,1748394641602,-490.0,0.00019726,2]
[362679338,1748394641611,-430.0,0.00019726,2]
[362679340,1748394641620,-517.75104682,0.00019726,2]
[362679342,1748394641630,-235.02281474,0.00019726,2]
[362679355,1748394641751,-194.97718526,0.00019726,2]
[362679357,1748394641761,-430.0,0.00019726,2]
[362679359,1748394641770,-906.49,0.00019726,2]
[362679362,1748394641780,-380.21140409,0.00019726,2]
[362679363,1748394641790,-430.0,0.00019726,2]
[362679366,1748394641799,-514.67,0.00019726,2]
[362679368,1748394641809,-356.0,0.00019726,2]
[362679370,1748394641819,-430.0,0.00019726,2]
[362679372,1748394641828,-136.23396919,0.00019726,2]
[362679399,1748394642074,-430.0,0.00019178,2]
[362679401,1748394642084,-430.0,0.00019178,2]
[362679403,1748394642093,-430.0,0.00019178,2]
[362679405,1748394642103,-430.0,0.00019452,2]
[362679407,1748394642112,-381.31382943,0.00019452,2]
[362679409,1748394642121,-293.76603081,0.00019726,2]
[362679411,1748394642130,-94.08490151,0.00019726,2]
[362679413,1748394642141,-335.91509849,0.00019726,2]
[362679415,1748394642151,-430.0,0.00019726,2]
[362679417,1748394642160,-430.0,0.00019726,2]
[362679419,1748394642170,-430.0,0.00019726,2]
[362679421,1748394642179,-904.56,0.00019733,2]
[362679423,1748394642189,-160.46457694,0.00019818,2]
[362679425,1748394642198,-397.94069806,0.0002,2]
[362679911,1748394646871,-220.7125557,0.00019178,2]
[362679912,1748394646881,-430.0,0.00019178,2]
[362679914,1748394646891,-32.05930194,0.0002,2]
[362679916,1748394646901,-430.0,0.0002,2]
[362679918,1748394646911,-430.0,0.0002,2]
[362679919,1748394646920,-430.0,0.0002,2]
[362679921,1748394646930,-430.0,0.0002,2]
[362679923,1748394646939,-430.0,0.0002,2]
[362679925,1748394646949,-430.0,0.0002,2]
[362679926,1748394646958,-430.0,0.0002,2]
[362679928,1748394646968,-430.0,0.0002,2]
[362679930,1748394646977,-430.0,0.0002,2]
[362679932,1748394646986,-503.18850411,0.0002,2]
[362679933,1748394646996,-430.0,0.0002,2]
[362679935,1748394647005,-430.0,0.0002,2]
[362679938,1748394647015,-430.0,0.0002,2]
[362679940,1748394647025,-430.0,0.0002,2]
[362679942,1748394647035,-430.0,0.0002,2]
[362679943,1748394647043,-430.0,0.0002,2]
[362679945,1748394647052,-500.0,0.0002,2]
[362679947,1748394647062,-510.0,0.0002,2]
[362679949,1748394647071,-430.0,0.0002,2]
[362679950,1748394647080,-510.0,0.0002,2]
[362679952,1748394647089,-430.0,0.0002,2]
[362679954,1748394647098,-440.0,0.0002,2]
[362679955,1748394647107,-430.0,0.0002,2]
[362679957,1748394647116,-430.0,0.0002,2]
[362679959,1748394647125,-430.0,0.0002,2]
[362679961,1748394647134,-430.0,0.0002,2]
[362679962,1748394647143,-430.0,0.0002,2]
[362679964,1748394647153,-430.0,0.0002,2]
[362679966,1748394647162,-430.0,0.0002,2]
[362679968,1748394647172,-430.0,0.0002,2]
[362679969,1748394647180,-430.0,0.0002,2]
[362679971,1748394647190,-430.0,0.0002,2]
[362679973,1748394647199,-430.0,0.0002,2]
[362679975,1748394647209,-448.84,0.0002,2]
[362679977,1748394647218,-430.0,0.0002,2]
[362679978,1748394647228,-430.0,0.0002,2]
[362679980,1748394647237,-151.0,0.0002,2]
[362679982,1748394647246,-430.0,0.0002,2]
[362679984,1748394647259,-430.0,0.0002,2]
[362679986,1748394647269,-430.0,0.0002,2]
[362679988,1748394647278,-430.0,0.0002,2]
[362679989,1748394647287,-514.43,0.0002,2]
[362679991,1748394647297,-611.29,0.0002,2]
[362679993,1748394647306,-501.17402532,0.0002,2]
[362679995,1748394647315,-430.0,0.0002,2]
[362679996,1748394647325,-430.0,0.0002,2]
[362679998,1748394647335,-430.0,0.0002,2]
[362680000,1748394647344,-430.0,0.0002,2]
[362680002,1748394647353,-430.0,0.0002,2]
[362680003,1748394647363,-430.0,0.0002,2]
[362680005,1748394647373,-1187.51,0.0002,2]
[362680007,1748394647383,-430.0,0.0002,2]
[362680009,1748394647392,-430.0,0.0002,2]
[362680011,1748394647402,-430.0,0.0002,2]
[362680013,1748394647412,-430.0,0.0002,2]
[362680014,1748394647421,-430.0,0.0002,2]
[362680016,1748394647431,-430.0,0.0002,2]
[362680018,1748394647440,-430.0,0.0002,2]
[362680020,1748394647450,-466.60450915,0.0002,2]
[362680021,1748394647459,-430.0,0.0002,2]
[362680023,1748394647468,-430.0,0.0002,2]
[362680025,1748394647513,-430.0,0.0002,2]
[362680027,1748394647523,-564.86,0.0002,2]
[362680029,1748394647532,-430.0,0.0002,2]
[362680031,1748394647541,-430.0,0.0002,2]
[362680032,1748394647551,-600.06,0.0002,2]
[362680034,1748394647561,-430.0,0.0002,2]
[362680036,1748394647570,-1836.92,0.0002,2]
[362680038,1748394647579,-430.0,0.0002,2]
[362680040,1748394647593,-465.92629353,0.0002,2]
[362680041,1748394647603,-430.0,0.0002,2]
[362680043,1748394647613,-430.0,0.0002,2]
[362680045,1748394647623,-430.0,0.0002,2]
[362680047,1748394647632,-430.0,0.0002,2]
[362680049,1748394647642,-968.0,0.0002,2]
[362680050,1748394647651,-430.0,0.0002,2]
[362680052,1748394647664,-430.0,0.0002,2]
[362680054,1748394647674,-430.0,0.0002,2]
[362680056,1748394647684,-430.0,0.0002,2]
[362680058,1748394647693,-430.0,0.0002,2]
[362680059,1748394647703,-430.0,0.0002,2]
[362680061,1748394647713,-430.0,0.0002,2]
[362680063,1748394647722,-569.09,0.0002,2]
[362680065,1748394647732,-430.0,0.0002,2]
[362680066,1748394647741,-430.0,0.0002,2]
[362680068,1748394647750,-430.0,0.0002,2]
[362680070,1748394647760,-476.22,0.0002,2]
[362680072,1748394647769,-430.0,0.0002,2]
[362680074,1748394647778,-430.0,0.0002,2]
[362680075,1748394647788,-351.34323056,0.0002,2]
[362680077,1748394647797,-430.0,0.0002,2]
[362680079,1748394647807,-430.0,0.0002,2]
[362680081,1748394647816,-524.62,0.0002,2]
[362680082,1748394647825,-172.54665012,0.0002,2]
[362680084,1748394647834,-430.0,0.0002,2]
[362680086,1748394647844,-430.0,0.0002,2]
[362680088,1748394647853,-430.0,0.0002,2]
[362680090,1748394647863,-430.0,0.0002,2]
[362680091,1748394647872,-430.0,0.0002,2]
[362680093,1748394647882,-430.0,0.0002,2]
[362680095,1748394647891,-430.0,0.0002,2]
[362680097,1748394647900,-430.0,0.0002,2]
[362680099,1748394647910,-430.0,0.0002,2]
[362680100,1748394647920,-573.75,0.0002,2]
[362680102,1748394647930,-430.0,0.0002,2]
[362680104,1748394647939,-430.0,0.0002,2]
[362680106,1748394647950,-430.0,0.0002,2]
[362680108,1748394647960,-533.89,0.0002,2]
[362680109,1748394647970,-441.22,0.0002,2]
[362680111,1748394647979,-430.0,0.0002,2]
[362680113,1748394647989,-430.0,0.0002,2]
[362680115,1748394647999,-268.1127267,0.0002,2]
[362680117,1748394648009,-430.0,0.0002,2]
[362680118,1748394648019,-430.0,0.0002,2]
[362680120,1748394648029,-430.0,0.0002,2]
[362680122,1748394648041,-906.49,0.0002,2]
[362680124,1748394648051,-430.0,0.0002,2]
[362680126,1748394648061,-514.67,0.0002,2]
[362680127,1748394648072,-430.0,0.0002,2]
[362680129,1748394648082,-430.0,0.0002,2]
[362680131,1748394648091,-430.0,0.0002,2]
[362680133,1748394648100,-170.0,0.0002,2]
[362680134,1748394648109,-430.0,0.0002,2]
[362680136,1748394648119,-500.0,0.00020186,2]
[362680138,1748394648128,-238.08753,0.00020187,2]
[362680140,1748394648137,-500.0,0.00020226,2]
[362680141,1748394648146,-500.0,0.00020268,2]
[362680143,1748394648156,-1000.0,0.00020268,2]
[362680145,1748394648166,-430.0,0.00020273,2]
[362680147,1748394648176,-435.44,0.00020273,2]
[362680148,1748394648186,-430.0,0.00020273,2]
[362680150,1748394648199,-430.0,0.00020273,2]
[362680152,1748394648209,-430.0,0.00020273,2]
[362680154,1748394648220,-430.0,0.00020273,2]
[362680156,1748394648229,-430.0,0.00020273,2]
[362680157,1748394648238,-430.0,0.00020273,2]
[362680159,1748394648248,-430.0,0.00020273,2]
[362680161,1748394648257,-430.0,0.00020273,2]
[362680163,1748394648266,-430.0,0.00020273,2]
[362680165,1748394648275,-430.0,0.00020273,2]
[362680166,1748394648285,-430.0,0.00020273,2]
[362680168,1748394648294,-323.65588239,0.00020273,2]
[362680170,1748394648303,-604.85,0.00020273,2]
[362680172,1748394648313,-430.0,0.00020273,2]
[362680173,1748394648323,-430.0,0.00020273,2]
[362680175,1748394648332,-430.0,0.00020273,2]
[362680177,1748394648342,-430.0,0.00020273,2]
[362680179,1748394648352,-430.0,0.00020273,2]
[362680181,1748394648362,-450.0,0.00020273,2]
[362680182,1748394648372,-369.4710152,0.00020273,2]
[362680184,1748394648381,-430.0,0.00020273,2]
[362680186,1748394648391,-430.0,0.00020273,2]
[362680188,1748394648401,-430.0,0.00020273,2]
[362680190,1748394648411,-391.64304039,0.00020273,2]
[362680191,1748394648421,-430.0,0.00020273,2]
[362680200,1748394648515,-259.71,0.00020273,2]
[362680202,1748394648526,-514.43,0.00020273,2]
[362680204,1748394648537,-611.29,0.00020273,2]
[362680205,1748394648547,-430.0,0.00020273,2]
[362680207,1748394648557,-430.0,0.00020273,2]
[362680209,1748394648566,-430.0,0.00020273,2]
[362680211,1748394648576,-430.0,0.00020273,2]
[362680212,1748394648588,-430.0,0.00020273,2]
[362680214,1748394648598,-430.0,0.00020273,2]
[362680216,1748394648607,-1187.51,0.00020273,2]
[362680218,1748394648617,-430.0,0.00020273,2]
[362680219,1748394648628,-430.0,0.00020273,2]
[362680221,1748394648638,-430.0,0.00020273,2]
[362680223,1748394648647,-430.0,0.00020273,2]
[362680225,1748394648657,-430.0,0.00020273,2]
[362680227,1748394648668,-165.9,0.00020273,2]
[362680229,1748394648678,-430.0,0.00020273,2]
[362680231,1748394648688,-430.0,0.00020273,2]
[362680232,1748394648699,-430.0,0.00020273,2]
[362680234,1748394648709,-564.86,0.00020273,2]
[362680236,1748394648719,-430.0,0.00020273,2]
[362680239,1748394648729,-430.0,0.00020273,2]
[362680240,1748394648739,-600.06,0.00020273,2]
[362680243,1748394648749,-430.0,0.00020273,2]
[362680245,1748394648759,-1836.92,0.00020273,2]
[362680247,1748394648769,-430.0,0.00020273,2]
[362680248,1748394648779,-430.0,0.00020273,2]
[362680251,1748394648789,-470.0,0.00020273,2]
[362680252,1748394648799,-430.0,0.00020273,2]
[362680255,1748394648809,-968.0,0.00020273,2]
[362680256,1748394648818,-430.0,0.00020273,2]
[362680258,1748394648828,-339.43093758,0.00020273,2]
[362680260,1748394648837,-430.0,0.00020273,2]
[362680262,1748394648846,-430.0,0.00020273,2]
[362680264,1748394648856,-430.0,0.00020273,2]
[362680266,1748394648866,-430.0,0.00020273,2]
[362680268,1748394648875,-430.0,0.00020273,2]
[362680270,1748394648885,-430.0,0.00020273,2]
[362680272,1748394648895,-430.0,0.00020273,2]
[362680274,1748394648905,-430.0,0.00020273,2]
[362680275,1748394648914,-476.22,0.00020273,2]
[362680276,1748394648924,-430.0,0.00020273,2]
[362680277,1748394648934,-430.0,0.00020273,2]
[362680278,1748394648945,-494.9343198,0.00020273,2]
[362680279,1748394648955,-524.62,0.00020273,2]
[362680280,1748394648965,-430.0,0.00020273,2]
[362680281,1748394648975,-430.0,0.00020273,2]
[362680282,1748394648985,-430.0,0.00020273,2]
[362680283,1748394648995,-430.0,0.00020273,2]
[362680284,1748394649005,-430.0,0.00020273,2]
[362680285,1748394649015,-430.0,0.00020273,2]
[362680286,1748394649025,-430.0,0.00020273,2]
[362680287,1748394649035,-573.75,0.00020273,2]
[362680288,1748394649044,-430.0,0.00020273,2]
[362680289,1748394649054,-430.0,0.00020273,2]
[362680290,1748394649064,-441.22,0.00020273,2]
[362680291,1748394649074,-430.0,0.00020273,2]
[362680292,1748394649084,-430.0,0.00020273,2]
[362680293,1748394649093,-270.0,0.00020273,2]
[362680294,1748394649103,-430.0,0.00020273,2]
[362680295,1748394649113,-906.49,0.00020273,2]
[362680296,1748394649124,-430.0,0.00020273,2]
[362680297,1748394649134,-514.67,0.00020273,2]
[362680298,1748394649144,-430.0,0.00020273,2]
[362680299,1748394649154,-430.0,0.00020273,2]
[362680300,1748394649164,-277.29737243,0.00020273,2]
[362680301,1748394649173,-430.0,0.00020369,2]
[362680302,1748394649184,-500.0,0.00020369,2]
[362680303,1748394649195,-151.0,0.00020369,2]
[362680304,1748394649205,-430.0,0.00020369,2]
[362680305,1748394649213,-151.0,0.00020369,2]
[362680306,1748394649223,-420.0,0.00020369,2]
[362680307,1748394649233,-842.5625,0.00020423,2]
[362680308,1748394649243,-160.0,0.00020423,2]
[362680309,1748394649253,-229.18805157,0.00020423,2]
[362680310,1748394649262,-160.0,0.00020423,2]
[362680311,1748394649271,-423.16111059,0.00020423,2]
[362680312,1748394649281,-207.4,0.00020442,2]
[362680313,1748394649291,-500.0,0.00020544,2]
[362680314,1748394649301,-430.0,0.00020547,2]
[362680315,1748394649311,-450.0,0.00020547,2]
[362680317,1748394649322,-430.0,0.00020547,2]
[362680318,1748394649331,-262.60624418,0.00020547,2]
[362680319,1748394649340,-535.63,0.00020547,2]
[362680321,1748394649350,-430.0,0.00020547,2]
[362680322,1748394649360,-430.0,0.00020547,2]
[362680324,1748394649370,-430.0,0.00020547,2]
[362680325,1748394649380,-443.7,0.00020547,2]
[362680327,1748394649390,-430.0,0.00020547,2]
[362680330,1748394649400,-430.0,0.00020547,2]
[362680332,1748394649410,-430.0,0.00020547,2]
[362680334,1748394649421,-480.01,0.00020547,2]
[362680336,1748394649430,-514.43,0.00020547,2]
[362680338,1748394649441,-611.29,0.00020547,2]
[362680340,1748394649450,-430.0,0.00020547,2]
[362680342,1748394649460,-430.0,0.00020547,2]
[362680343,1748394649469,-179.52,0.00020547,2]
[362680345,1748394649478,-430.0,0.00020547,2]
[362680347,1748394649488,-430.0,0.00020547,2]
[362680349,1748394649498,-1187.51,0.00020547,2]
[362680351,1748394649507,-430.0,0.00020547,2]
[362680353,1748394649517,-430.0,0.00020547,2]
[362680356,1748394649527,-430.0,0.00020547,2]
[362680357,1748394649536,-430.0,0.00020547,2]
[362680359,1748394649546,-430.0,0.00020547,2]
[362680362,1748394649556,-430.0,0.00020547,2]
[362680364,1748394649565,-430.0,0.00020547,2]
[362680366,1748394649575,-430.0,0.00020547,2]
[362680367,1748394649587,-564.86,0.00020547,2]
[362680370,1748394649597,-600.06,0.00020547,2]
[362680372,1748394649607,-430.0,0.00020547,2]
[362680374,1748394649616,-1836.92,0.00020547,2]
[362680375,1748394649627,-430.0,0.00020547,2]
[362680377,1748394649636,-430.0,0.00020547,2]
[362680380,1748394649646,-968.0,0.00020547,2]
[362680381,1748394649655,-430.0,0.00020547,2]
[362680383,1748394649666,-430.0,0.00020547,2]
[362680385,1748394649677,-430.0,0.00020547,2]
[362680388,1748394649687,-430.0,0.00020547,2]
[362680389,1748394649697,-430.0,0.00020547,2]
[362680391,1748394649707,-430.0,0.00020547,2]
[362680393,1748394649716,-430.0,0.00020547,2]
[362680395,1748394649726,-430.0,0.00020547,2]
[362680397,1748394649736,-476.22,0.00020547,2]
[362680399,1748394649745,-430.0,0.00020547,2]
[362680402,1748394649756,-430.0,0.00020547,2]
[362680404,1748394649765,-524.62,0.00020547,2]
[362680405,1748394649775,-430.0,0.00020547,2]
[362680408,1748394649785,-430.0,0.00020547,2]
[362680410,1748394649795,-430.0,0.00020547,2]
[362680412,1748394649805,-430.0,0.00020547,2]
[362680414,1748394649814,-430.0,0.00020547,2]
[362680416,1748394649823,-430.0,0.00020547,2]
[362680418,1748394649832,-430.0,0.00020547,2]
[362680420,1748394649842,-573.75,0.00020547,2]
[362680422,1748394649851,-496.94151109,0.00020547,2]
[362680424,1748394649861,-430.0,0.00020547,2]
[362680426,1748394649871,-441.22,0.00020547,2]
[362680428,1748394649881,-430.0,0.00020547,2]
[362680430,1748394649890,-430.0,0.00020547,2]
[362680432,1748394649900,-906.49,0.00020547,2]
[362680433,1748394649909,-430.0,0.00020547,2]
[362680435,1748394649919,-514.67,0.00020547,2]
[362680438,1748394649929,-430.0,0.00020547,2]
[362680440,1748394649940,-430.0,0.00020547,2]
[362680442,1748394649950,-300.0,0.00020616,2]
[362680444,1748394649960,-430.0,0.00020643,2]
[362680446,1748394649969,-151.0,0.00020643,2]
[362680448,1748394649978,-402.445926,0.00020643,2]
[362680450,1748394649988,-402.445926,0.00020643,2]
[362680452,1748394649998,-430.0,0.00020643,2]
[362680454,1748394650007,-151.0,0.00020643,2]
[362680456,1748394650017,-151.0,0.00020643,2]
[362680458,1748394650026,-151.0,0.00020643,2]
[362680460,1748394650036,-151.0,0.00020643,2]
[362680462,1748394650045,-151.0,0.00020643,2]
[362680464,1748394650054,-151.0,0.00020643,2]
[362680466,1748394650064,-151.0,0.00020643,2]
[362680468,1748394650073,-1809.11,0.00020673,2]
[362680470,1748394650082,-500.93830157,0.0002082,2]
[362680472,1748394650092,-500.0,0.0002082,2]
[362680474,1748394650102,-326.78412022,0.0002082,2]
[362680476,1748394650111,-500.0,0.0002082,2]
[362680478,1748394650120,-430.0,0.00020821,2]
[362680480,1748394650129,-430.0,0.00020821,2]
[362680482,1748394650138,-430.0,0.00020821,2]
[362680484,1748394650147,-430.0,0.00020821,2]
[362680486,1748394650157,-430.0,0.00020821,2]
[362680488,1748394650166,-378.08,0.00020821,2]
[362680490,1748394650175,-430.0,0.00020821,2]
[362680492,1748394650184,-514.43,0.00020821,2]
[362680493,1748394650195,-611.29,0.00020821,2]
[362680496,1748394650205,-452.54,0.00020821,2]
[362680497,1748394650215,-430.0,0.00020821,2]
[362680499,1748394650224,-430.0,0.00020821,2]
[362680501,1748394650234,-340.06697418,0.00020821,2]
[362680503,1748394650243,-1187.51,0.00020821,2]
[362680505,1748394650253,-430.0,0.00020821,2]
[362680507,1748394650262,-430.0,0.00020821,2]
[362680509,1748394650272,-430.0,0.00020821,2]
[362680511,1748394650281,-430.0,0.00020821,2]
[362680514,1748394650291,-430.0,0.00020821,2]
[362680515,1748394650300,-430.0,0.00020821,2]
[362680525,1748394650384,-246.07563953,0.00020821,2]
[362680527,1748394650394,-564.86,0.00020821,2]
[362680530,1748394650403,-600.06,0.00020821,2]
[362680532,1748394650412,-430.0,0.00020821,2]
[362680533,1748394650422,-1836.92,0.00020821,2]
[362680536,1748394650431,-430.0,0.00020821,2]
[362680538,1748394650441,-430.0,0.00020821,2]
[362680540,1748394650451,-968.0,0.00020821,2]
[362680542,1748394650461,-430.0,0.00020821,2]
[362680543,1748394650471,-430.0,0.00020821,2]
[362680546,1748394650481,-481.8,0.00020821,2]
[362680548,1748394650490,-430.0,0.00020821,2]
[362680550,1748394650500,-430.0,0.00020821,2]
[362680552,1748394650510,-544.36,0.00020821,2]
[362680554,1748394650520,-430.0,0.00020821,2]
[362680556,1748394650529,-445.28,0.00020821,2]
[362680558,1748394650538,-476.22,0.00020821,2]
[362680560,1748394650547,-430.0,0.00020821,2]
[362680562,1748394650557,-557.17,0.00020821,2]
[362680564,1748394650567,-524.62,0.00020821,2]
[362680566,1748394650577,-430.0,0.00020821,2]
[362680568,1748394650590,-430.0,0.00020821,2]
[362680570,1748394650602,-430.0,0.00020821,2]
[362680572,1748394650611,-430.0,0.00020821,2]
[362680574,1748394650620,-430.0,0.00020821,2]
[362680576,1748394650630,-430.0,0.00020821,2]
[362680578,1748394650640,-158.55,0.00020821,2]
[362680581,1748394650649,-573.75,0.00020821,2]
[362680583,1748394650659,-430.0,0.00020821,2]
[362680585,1748394650671,-441.22,0.00020821,2]
[362680586,1748394650681,-430.0,0.00020821,2]
[362680589,1748394650691,-430.0,0.00020821,2]
[362680590,1748394650703,-906.49,0.00020821,2]
[362680593,1748394650713,-430.0,0.00020821,2]
[362680595,1748394650722,-514.67,0.00020821,2]
[362680597,1748394650732,-561.12414029,0.00020821,2]
[362680599,1748394650742,-430.0,0.00020821,2]
[362680601,1748394650751,-500.0,0.00020837,2]
[362680603,1748394650761,-544.87753441,0.000209,4]
[362680605,1748394650770,-151.0,0.00020916,2]
[362680607,1748394650780,-430.0,0.00020917,2]
[362680609,1748394650790,-151.0,0.00020917,2]
[362680611,1748394650799,-456.15,0.00020917,2]
[362680613,1748394650808,-202.617,0.0002095,2]
[362680615,1748394650817,-500.0,0.00021046,2]